[Event "Turniej 30-lecia Liceum im. Józefa Bema"]
[Site "Warsaw, Poland"]
[Date "????.??.??"]
[Round "7.5"]
[White "Szymczak, Rafal"]
[Black "Gronkowski, Dariusz"]
[Result "1/2-1/2"]
[TimeControl "0:10:02"]
[WhiteElo "2021"]
[BlackElo "1645"]

1. f4 {[%clk 00:10:03]} {[%emt 00:00:01]} d6 {[%clk 00:10:03]} 2. Nf3 {[%clk
00:10:03]} {[%emt 00:00:01]} e5 {[%clk 00:10:04]} {[%emt 00:00:01]} 3. fxe5
{[%clk 00:09:48]} {[%emt 00:00:18]} dxe5 {[%clk 00:10:04]} {[%emt 00:00:02]} 4.
Nxe5 {[%clk 00:09:13]} {[%emt 00:00:37]} Qh4+ {[%clk 00:10:02]} {[%emt
00:00:03]} 5. g3 {[%clk 00:09:10]} {[%emt 00:00:05]} Qe4 {[%clk 00:10:02]}
{[%emt 00:00:01]} 6. Nf3 {[%clk 00:09:08]} {[%emt 00:00:04]} Bd6 {[%clk
00:09:39]} {[%emt 00:00:26]} 7. Bg2 {[%clk 00:08:58]} {[%emt 00:00:12]} Nf6
{[%clk 00:09:20]} {[%emt 00:00:20]} 8. O-O {[%clk 00:07:47]} {[%emt 00:01:13]}
O-O {[%clk 00:09:10]} {[%emt 00:00:11]} 9. d3 {[%clk 00:07:35]} {[%emt
00:00:14]} Bc5+ {[%clk 00:08:54]} {[%emt 00:00:18]} 10. Kh1 {[%clk 00:07:18]}
{[%emt 00:00:19]} Qe7 {[%clk 00:08:42]} {[%emt 00:00:14]} 11. Bg5 {[%clk
00:06:59]} {[%emt 00:00:22]} Nbd7 {[%clk 00:08:28]} {[%emt 00:00:16]} 12. Nc3
{[%clk 00:06:46]} {[%emt 00:00:14]} c6 {[%clk 00:08:22]} {[%emt 00:00:08]} 13.
Ne4 {[%clk 00:06:33]} {[%emt 00:00:16]} Bb6 {[%clk 00:08:22]} {[%emt 00:00:02]}
14. Nxf6+ {[%clk 00:06:32]} {[%emt 00:00:03]} Nxf6 {[%clk 00:08:22]} {[%emt
00:00:01]} 15. e4 {[%clk 00:06:30]} {[%emt 00:00:05]} h6 {[%clk 00:08:21]}
{[%emt 00:00:02]} 16. Bxf6 {[%clk 00:06:29]} {[%emt 00:00:03]} Qxf6 {[%clk
00:08:21]} {[%emt 00:00:02]} 17. c3 {[%clk 00:06:24]} {[%emt 00:00:07]} Qe7
{[%clk 00:08:13]} {[%emt 00:00:09]} 18. Nh4 {[%clk 00:06:01]} {[%emt 00:00:25]}
Be6 {[%clk 00:07:51]} {[%emt 00:00:24]} 19. d4 {[%clk 00:05:17]} {[%emt
00:00:47]} Rad8 {[%clk 00:07:52]} {[%emt 00:00:01]} 20. Qf3 {[%clk 00:05:02]}
{[%emt 00:00:16]} Qd7 {[%clk 00:07:46]} {[%emt 00:00:08]} 21. Nf5 {[%clk
00:04:54]} {[%emt 00:00:09]} Bxf5 {[%clk 00:07:33]} {[%emt 00:00:16]} 22. exf5
{[%clk 00:04:33]} {[%emt 00:00:24]} Bc7 {[%clk 00:07:26]} {[%emt 00:00:09]} 23.
Rae1 {[%clk 00:04:23]} {[%emt 00:00:12]} Rde8 {[%clk 00:07:24]} {[%emt
00:00:03]} 24. Kg1 {[%clk 00:04:01]} {[%emt 00:00:24]} Rxe1 {[%clk 00:07:14]}
{[%emt 00:00:12]} 25. Rxe1 {[%clk 00:04:03]} {[%emt 00:00:01]} Re8 {[%clk
00:07:13]} {[%emt 00:00:02]} 26. Re4 {[%clk 00:03:48]} {[%emt 00:00:15]} Rxe4
{[%clk 00:06:36]} {[%emt 00:00:41]} 27. Qxe4 {[%clk 00:03:49]} {[%emt
00:00:01]} Kf8 {[%clk 00:06:28]} {[%emt 00:00:09]} 28. f6 {[%clk 00:03:24]}
{[%emt 00:00:27]} g6 {[%clk 00:06:11]} {[%emt 00:00:18]} 29. Bh3 {[%clk
00:03:13]} {[%emt 00:00:14]} Qe8 {[%clk 00:05:58]} {[%emt 00:00:15]} 30. Qf3
{[%clk 00:02:12]} {[%emt 00:01:03]} Qe1+ {[%clk 00:05:46]} {[%emt 00:00:14]} 31.
Bf1 {[%clk 00:02:05]} {[%emt 00:00:09]} Kg8 {[%clk 00:05:16]} {[%emt 00:00:32]}
32. b4 {[%clk 00:01:35]} {[%emt 00:00:33]} Bd8 {[%clk 00:05:10]} {[%emt
00:00:07]} 33. Qf4 {[%clk 00:01:24]} {[%emt 00:00:14]} Kh7 {[%clk 00:04:57]}
{[%emt 00:00:14]} 34. Qd6 {[%clk 00:01:19]} {[%emt 00:00:07]} Qe3+ {[%clk
00:04:51]} {[%emt 00:00:08]} 35. Kg2 {[%clk 00:01:20]} {[%emt 00:00:02]} Qe4+
{[%clk 00:04:49]} {[%emt 00:00:03]} 36. Kg1 {[%clk 00:01:15]} {[%emt 00:00:08]}
Qe3+ {[%clk 00:04:49]} {[%emt 00:00:02]} 37. Kg2 {[%clk 00:01:08]} {[%emt
00:00:08]} Qe4+ {[%clk 00:04:41]} {[%emt 00:00:10]} 38. Kg1 {[%clk 00:01:09]}
1/2-1/2

[Event "Turniej 30-lecia Liceum im. Józefa Bema"]
[Site "Warsaw, Poland"]
[Date "????.??.??"]
[Round "7.6"]
[White "Janeczko, Jakub"]
[Black "Dworakowski, Lukasz"]
[Result "1-0"]
[TimeControl "0:10:02"]
[WhiteElo "1661"]
[BlackElo "2185"]

1. e4 {[%emt 00:11:23]} e5 {[%emt 00:00:01]} 2. Nf3 {[%emt 00:00:02]} Nc6
{[%emt 00:00:01]} 3. d4 {[%emt 00:00:09]} exd4 {[%emt 00:00:02]} 4. Bc4 {[%emt
00:00:01]} Nf6 {[%emt 00:00:50]} 5. e5 {[%emt 00:00:06]} Ne4 {[%emt 00:00:08]}
6. O-O {[%emt 00:00:18]} d5 {[%emt 00:00:12]} 7. Bb5 {[%emt 00:00:13]} Bd7
{[%emt 00:00:57]} 8. Bxc6 {[%emt 00:00:05]} bxc6 {[%emt 00:00:16]} 9. Nxd4
{[%emt 00:00:02]} Be7 {[%emt 00:00:28]} 10. f3 {[%emt 00:00:14]} Nc5 {[%emt
00:00:02]} 11. Be3 {[%emt 00:00:22]} Ne6 {[%emt 00:00:22]} 12. c3 {[%emt
00:00:49]} O-O {[%emt 00:00:13]} 13. Nd2 {[%emt 00:00:05]} c5 {[%emt 00:00:32]}
14. Nf5 {[%emt 00:00:34]} d4 {[%emt 00:00:48]} 15. cxd4 {[%emt 00:00:14]} cxd4
{[%emt 00:00:03]} 16. Bf2 {[%emt 00:01:47]} c5 {[%emt 00:00:13]} 17. Ne4 {[%emt
00:00:11]} Bc6 {[%emt 00:00:04]} 18. Ned6 {[%emt 00:00:20]} Bg5 {[%emt
00:00:52]} 19. b4 {[%emt 00:00:51]} g6 {[%emt 00:01:57]} 20. Ng3 {[%emt
00:00:09]} Bf4 {[%emt 00:00:09]} 21. Re1 {[%emt 00:00:03]} Bxe5 {[%emt
00:00:23]} 22. Nxf7 {[%emt 00:00:11]} Kxf7 {[%emt 00:00:19]} 23. Rxe5 {[%emt
00:00:04]} cxb4 {[%emt 00:00:14]} 24. Qb3 {[%emt 00:00:03]} Qd6 {[%emt
00:00:13]} 25. Rae1 {[%emt 00:00:01]} Rfe8 {[%emt 00:00:04]} 26. Kh1 {[%emt
00:00:57]} Rad8 {[%emt 00:00:06]} 27. Bxd4 {[%emt 00:00:25]} Bd5 {[%emt
00:00:01]} 28. Qa4 Bc6 {[%emt 00:00:32]} 29. Qb3 {[%emt 00:00:30]} Qxd4 {[%emt
00:00:14]} 30. Rxe6 {[%emt 00:00:35]} Bd5 31. Rxe8 {[%emt 00:00:08]} Bxb3
{[%emt 00:00:02]} 32. R1e7+ {[%emt 00:00:13]} Kf6 {[%emt 00:00:02]} 33. Ne4+
Kf5 {[%emt 00:00:07]} 34. Ng3+ {[%emt 00:00:55]} Kf4 {[%emt 00:00:01]} 35. Ne2+
{[%emt 00:00:02]} Kg5 {[%emt 00:00:03]} 36. Nxd4 {[%emt 00:00:02]} Rxd4 37.
axb3 {[%emt 00:00:01]} a5 {[%emt 00:00:01]} 38. Re5+ {[%emt 00:00:02]} Kf6
{[%emt 00:00:02]} 39. Re4 {[%emt 00:00:01]} Rd3 {[%emt 00:00:01]} 40. Re3 Rd1+
{[%emt 00:00:02]} 41. Re1 Rd3 42. R8e3 Rd2 {[%emt 00:00:02]} 43. h4 {[%emt
00:00:03]} Rb2 {[%emt 00:00:02]} 44. Ra1 {[%emt 00:00:07]} 1-0

[Event "Turniej 30-lecia Liceum im. Józefa Bema"]
[Site "Warsaw, Poland"]
[Date "????.??.??"]
[Round "7.8"]
[White "Krasiewicz, Robert"]
[Black "Klim, Filip"]
[Result "0-1"]
[TimeControl "0:10:02"]
[WhiteElo "1948"]
[BlackElo "1577"]

1. c4 {[%clk 00:10:00]} {[%emt 00:00:04]} c5 {[%clk 00:10:03]} {[%emt
00:00:01]} 2. g3 {[%clk 00:10:01]} g6 {[%clk 00:10:04]} {[%emt 00:00:01]} 3.
Bg2 {[%clk 00:10:02]} Bg7 {[%clk 00:10:05]} {[%emt 00:00:02]} 4. Nf3 {[%clk
00:10:02]} {[%emt 00:00:02]} Nc6 {[%clk 00:10:05]} {[%emt 00:00:02]} 5. Nc3
{[%clk 00:10:03]} {[%emt 00:00:02]} Nf6 {[%clk 00:10:05]} {[%emt 00:00:01]} 6.
O-O {[%clk 00:10:03]} {[%emt 00:00:02]} O-O {[%clk 00:09:58]} {[%emt 00:00:09]}
7. a3 {[%clk 00:10:03]} {[%emt 00:00:03]} d6 {[%clk 00:09:54]} {[%emt
00:00:06]} 8. Rb1 {[%clk 00:10:00]} {[%emt 00:00:05]} Bf5 {[%clk 00:09:43]}
{[%emt 00:00:11]} 9. d3 {[%clk 00:09:50]} {[%emt 00:00:12]} Rb8 {[%clk
00:09:04]} {[%emt 00:00:41]} 10. b4 {[%clk 00:09:30]} {[%emt 00:00:23]} Nd7
{[%clk 00:08:07]} {[%emt 00:00:58]} 11. Nd5 {[%clk 00:09:06]} {[%emt 00:00:27]}
Be6 {[%clk 00:07:39]} {[%emt 00:00:30]} 12. Nf4 {[%clk 00:08:21]} {[%emt
00:00:47]} Nce5 {[%clk 00:06:09]} {[%emt 00:01:32]} 13. Ng5 {[%clk 00:07:35]}
{[%emt 00:00:48]} Bf5 {[%clk 00:05:31]} {[%emt 00:00:40]} 14. e4 {[%clk
00:07:21]} {[%emt 00:00:16]} h6 {[%clk 00:05:20]} {[%emt 00:00:12]} 15. Ngh3
{[%clk 00:05:48]} {[%emt 00:01:36]} Bxh3 {[%clk 00:05:14]} {[%emt 00:00:08]} 16.
Bxh3 {[%clk 00:05:38]} {[%emt 00:00:11]} b6 {[%clk 00:04:37]} {[%emt 00:00:40]}
17. Nd5 {[%clk 00:05:05]} {[%emt 00:00:35]} e6 {[%clk 00:04:15]} {[%emt
00:00:24]} 18. Ne3 {[%clk 00:04:56]} {[%emt 00:00:09]} Nc6 {[%clk 00:03:33]}
{[%emt 00:00:46]} 19. Nc2 {[%clk 00:04:42]} {[%emt 00:00:15]} Kh7 {[%clk
00:03:27]} {[%emt 00:00:08]} 20. Be3 {[%clk 00:04:40]} {[%emt 00:00:03]} Qf6
{[%clk 00:02:56]} {[%emt 00:00:33]} 21. b5 {[%clk 00:03:54]} {[%emt 00:00:49]}
Nd4 {[%clk 00:02:49]} {[%emt 00:00:09]} 22. Bxd4 {[%clk 00:03:49]} {[%emt
00:00:06]} cxd4 {[%clk 00:02:49]} {[%emt 00:00:02]} 23. Nb4 {[%clk 00:03:48]}
{[%emt 00:00:04]} Rb7 {[%clk 00:01:47]} {[%emt 00:01:03]} 24. a4 {[%clk
00:03:46]} {[%emt 00:00:05]} g5 {[%clk 00:01:22]} {[%emt 00:00:27]} 25. Ra1
{[%clk 00:03:32]} {[%emt 00:00:15]} Qg6 {[%clk 00:01:05]} {[%emt 00:00:20]} 26.
a5 {[%clk 00:02:55]} {[%emt 00:00:39]} f5 {[%clk 00:00:28]} {[%emt 00:00:38]}
27. exf5 {[%clk 00:02:25]} {[%emt 00:00:32]} exf5 {[%clk 00:00:25]} {[%emt
00:00:05]} 28. axb6 {[%clk 00:01:45]} {[%emt 00:00:42]} axb6 {[%clk 00:00:21]}
{[%emt 00:00:06]} 29. Bg2 {[%clk 00:01:46]} {[%emt 00:00:02]} Rbb8 {[%clk
00:00:19]} {[%emt 00:00:04]} 30. Nc6 {[%clk 00:01:40]} {[%emt 00:00:08]} Rbe8
{[%clk 00:00:15]} {[%emt 00:00:05]} 31. Ra7 {[%clk 00:01:39]} {[%emt 00:00:03]}
Ne5 {[%clk 00:00:10]} {[%emt 00:00:07]} 32. Qb3 {[%clk 00:01:14]} {[%emt
00:00:25]} Nxc6 {[%clk 00:00:10]} {[%emt 00:00:04]} 33. bxc6 {[%clk 00:01:13]}
{[%emt 00:00:03]} Rb8 {[%clk 00:00:08]} {[%emt 00:00:04]} 34. c7 {[%clk
00:01:10]} {[%emt 00:00:06]} Rbc8 {[%clk 00:00:09]} 35. Qxb6 {[%clk 00:01:07]}
{[%emt 00:00:05]} d5 {[%clk 00:00:06]} {[%emt 00:00:05]} 36. Qxg6+ {[%clk
00:01:04]} {[%emt 00:00:06]} Kxg6 {[%clk 00:00:07]} {[%emt 00:00:01]} 37. Bxd5
{[%clk 00:01:04]} {[%emt 00:00:02]} Be5 {[%clk 00:00:07]} {[%emt 00:00:01]} 38.
Re1 {[%clk 00:00:49]} {[%emt 00:00:17]} Bxc7 {[%clk 00:00:08]} {[%emt
00:00:02]} 39. Re6+ {[%clk 00:00:48]} {[%emt 00:00:03]} Kh5 {[%clk 00:00:08]}
{[%emt 00:00:02]} 40. Kg2 {[%clk 00:00:32]} {[%emt 00:00:17]} f4 {[%clk
00:00:09]} {[%emt 00:00:02]} 41. h3 {[%clk 00:00:23]} {[%emt 00:00:11]} fxg3
{[%clk 00:00:09]} {[%emt 00:00:02]} 42. fxg3 {[%clk 00:00:21]} {[%emt
00:00:04]} g4 {[%clk 00:00:08]} {[%emt 00:00:02]} 43. Re7 {[%clk 00:00:13]}
{[%emt 00:00:10]} Bd6 {[%clk 00:00:08]} {[%emt 00:00:02]} 44. Bf7+ {[%clk
00:00:12]} {[%emt 00:00:03]} Kg5 {[%clk 00:00:08]} {[%emt 00:00:02]} 45. Re6
{[%clk 00:00:11]} {[%emt 00:00:04]} Bc5 {[%clk 00:00:09]} {[%emt 00:00:01]} 46.
Ra5 {[%clk 00:00:10]} {[%emt 00:00:03]} Rxf7 {[%clk 00:00:10]} {[%emt
00:00:02]} 47. Re5+ {[%clk 00:00:10]} {[%emt 00:00:02]} Rf5 {[%clk 00:00:10]}
{[%emt 00:00:02]} 48. h4+ {[%clk 00:00:09]} {[%emt 00:00:03]} Kg6 {[%clk
00:00:11]} {[%emt 00:00:01]} 49. Ra6+ {[%clk 00:00:09]} {[%emt 00:00:02]} Rf6
{[%clk 00:00:07]} {[%emt 00:00:05]} 50. h5+ {[%clk 00:00:08]} {[%emt 00:00:03]}
Kg7 {[%clk 00:00:08]} {[%emt 00:00:01]} 51. Ra5 {[%clk 00:00:07]} {[%emt
00:00:04]} Rfc6 {[%clk 00:00:08]} {[%emt 00:00:02]} 52. Rb5 {[%clk 00:00:04]}
{[%emt 00:00:05]} Bd6 {[%clk 00:00:08]} {[%emt 00:00:01]} 53. Re4 {[%clk
00:00:04]} {[%emt 00:00:02]} Rc5 {[%clk 00:00:06]} {[%emt 00:00:05]} 54. Rxg4+
{[%clk 00:00:05]} Kh7 {[%clk 00:00:07]} {[%emt 00:00:01]} 55. Rb7+ {[%clk
00:00:06]} R5c7 {[%clk 00:00:08]} {[%emt 00:00:02]} 56. Rb6 {[%clk 00:00:08]}
Rc6 {[%clk 00:00:07]} {[%emt 00:00:02]} 57. Rb7+ {[%clk 00:00:09]} {[%emt
00:00:01]} R8c7 {[%clk 00:00:09]} 58. Rb5 {[%clk 00:00:09]} {[%emt 00:00:02]}
Rc5 {[%clk 00:00:08]} {[%emt 00:00:03]} 59. Rb6 {[%clk 00:00:09]} {[%emt
00:00:02]} Be7 {[%clk 00:00:09]} {[%emt 00:00:01]} 60. Rxd4 {[%clk 00:00:09]}
{[%emt 00:00:02]} Bg5 {[%clk 00:00:07]} {[%emt 00:00:04]} 61. Re4 {[%clk
00:00:09]} {[%emt 00:00:01]} Rd7 {[%clk 00:00:07]} {[%emt 00:00:02]} 62. Rb3
{[%clk 00:00:09]} {[%emt 00:00:02]} Rc8 {[%clk 00:00:08]} {[%emt 00:00:02]} 63.
Kf3 {[%clk 00:00:09]} {[%emt 00:00:01]} Rcd8 {[%clk 00:00:09]} 64. Ke2 {[%clk
00:00:11]} Kg7 {[%clk 00:00:10]} {[%emt 00:00:03]} 65. c5 {[%clk 00:00:12]}
{[%emt 00:00:02]} Rc7 {[%clk 00:00:08]} {[%emt 00:00:03]} 66. Rc4 {[%clk
00:00:12]} {[%emt 00:00:02]} Rd5 {[%clk 00:00:09]} {[%emt 00:00:01]} 67. c6
{[%clk 00:00:13]} {[%emt 00:00:01]} Rd6 {[%clk 00:00:09]} {[%emt 00:00:01]} 68.
Rb6 {[%clk 00:00:13]} {[%emt 00:00:02]} Bd8 {[%clk 00:00:09]} {[%emt 00:00:02]}
69. Ra6 {[%clk 00:00:14]} Re7+ {[%clk 00:00:10]} {[%emt 00:00:02]} 70. Kd2
{[%clk 00:00:16]} {[%emt 00:00:01]} Bc7 {[%clk 00:00:11]} 71. d4 {[%clk
00:00:15]} {[%emt 00:00:02]} Rd5 {[%clk 00:00:10]} {[%emt 00:00:02]} 72. Kd3
{[%clk 00:00:15]} {[%emt 00:00:02]} Bxg3 {[%clk 00:00:10]} {[%emt 00:00:02]} 73.
Rb6 {[%clk 00:00:14]} {[%emt 00:00:05]} Bc7 {[%clk 00:00:10]} 74. Rb7 {[%clk
00:00:15]} {[%emt 00:00:01]} Rf5 {[%clk 00:00:10]} {[%emt 00:00:02]} 75. Kc3
{[%clk 00:00:15]} {[%emt 00:00:02]} Re3+ {[%clk 00:00:10]} {[%emt 00:00:01]} 76.
Kb4 {[%clk 00:00:16]} {[%emt 00:00:01]} Re7 {[%clk 00:00:11]} {[%emt 00:00:01]}
77. Rc5 {[%clk 00:00:16]} {[%emt 00:00:02]} Bd6 {[%clk 00:00:08]} {[%emt
00:00:05]} 78. Rxe7+ Bxe7 {[%clk 00:00:09]} 79. c7 {[%clk 00:00:13]} {[%emt
00:00:02]} Bxc5+ {[%clk 00:00:09]} {[%emt 00:00:02]} 80. dxc5 {[%clk 00:00:14]}
Rf8 {[%clk 00:00:10]} 81. Kb5 {[%clk 00:00:15]} {[%emt 00:00:01]} Kf6 {[%clk
00:00:10]} {[%emt 00:00:01]} 82. Kc6 {[%clk 00:00:16]} Ke6 {[%clk 00:00:11]} 83.
Kb7 {[%clk 00:00:06]} {[%emt 00:00:12]} Kd7 {[%clk 00:00:13]} 84. c6 {[%clk
00:00:08]} Kd6 {[%clk 00:00:14]} 85. c8=Q {[%clk 00:00:05]} {[%emt 00:00:04]}
Rxc8 {[%clk 00:00:15]} {[%emt 00:00:03]} 86. Kxc8 {[%clk 00:00:06]} {[%emt
00:00:01]} Kxc6 {[%clk 00:00:16]} {[%emt 00:00:01]} 87. Kd8 {[%clk 00:00:07]}
Kd6 {[%clk 00:00:17]} {[%emt 00:00:02]} 88. Ke8 {[%clk 00:00:07]} {[%emt
00:00:02]} Ke6 {[%clk 00:00:18]} {[%emt 00:00:01]} 89. Kf8 {[%clk 00:00:08]}
{[%emt 00:00:01]} Kf6 {[%clk 00:00:19]} 90. Ke8 {[%clk 00:00:07]} {[%emt
00:00:03]} Kg5 {[%clk 00:00:20]} 91. Ke7 {[%clk 00:00:08]} Kxh5 {[%clk
00:00:20]} {[%emt 00:00:01]} 92. Ke6 {[%clk 00:00:06]} Kg4 {[%clk 00:00:20]}
{[%emt 00:00:07]} 93. Ke5 {[%clk 00:00:06]} {[%emt 00:00:02]} h5 {[%clk
00:00:21]} 94. Kd4 {[%emt 00:00:10]} 0-1

[Event "Turniej 30-lecia Liceum im. Józefa Bema"]
[Site "Warsaw, Poland"]
[Date "????.??.??"]
[Round "7.9"]
[White "Grzenkowicz, Lukasz"]
[Black "Siekierski, Pawel"]
[Result "0-1"]
[TimeControl "0:10:02"]
[WhiteElo "1546"]
[BlackElo "1889"]

1. d4 {[%clk 00:10:01]} {[%emt 00:00:02]} d5 {[%clk 00:10:03]} 2. Nf3 {[%clk
00:10:01]} {[%emt 00:00:01]} e6 {[%clk 00:10:02]} {[%emt 00:00:03]} 3. Bf4
{[%clk 00:09:56]} {[%emt 00:00:06]} Nf6 {[%clk 00:10:02]} {[%emt 00:00:03]} 4.
e3 {[%clk 00:09:57]} {[%emt 00:00:02]} Bd6 {[%clk 00:10:02]} {[%emt 00:00:02]}
5. Bxd6 Qxd6 {[%clk 00:10:03]} 6. Nbd2 {[%clk 00:09:19]} {[%emt 00:00:39]} O-O
{[%clk 00:09:57]} {[%emt 00:00:08]} 7. Bd3 {[%clk 00:09:19]} {[%emt 00:00:02]}
c5 {[%clk 00:09:55]} {[%emt 00:00:04]} 8. dxc5 {[%clk 00:09:09]} {[%emt
00:00:12]} Qxc5 {[%clk 00:09:56]} {[%emt 00:00:01]} 9. Ne5 {[%clk 00:08:45]}
{[%emt 00:00:23]} Nbd7 {[%clk 00:09:25]} {[%emt 00:00:35]} 10. Ndf3 {[%clk
00:08:24]} {[%emt 00:00:23]} Qb4+ {[%clk 00:09:13]} {[%emt 00:00:14]} 11. Kf1
{[%clk 00:07:22]} {[%emt 00:01:05]} Qxb2 {[%clk 00:09:05]} {[%emt 00:00:09]} 12.
Nxd7 {[%clk 00:07:11]} {[%emt 00:00:13]} Bxd7 {[%clk 00:08:37]} {[%emt
00:00:30]} 13. Qb1 {[%clk 00:06:22]} {[%emt 00:00:50]} Qc3 {[%clk 00:08:12]}
{[%emt 00:00:27]} 14. Qe1 {[%clk 00:06:15]} {[%emt 00:00:10]} Qc7 {[%clk
00:08:06]} {[%emt 00:00:08]} 15. a4 {[%clk 00:05:44]} {[%emt 00:00:33]} Rfc8
{[%clk 00:07:38]} {[%emt 00:00:29]} 16. Ra2 {[%clk 00:05:10]} {[%emt 00:00:37]}
Ne4 {[%clk 00:07:19]} {[%emt 00:00:20]} 17. Bxe4 {[%clk 00:04:08]} {[%emt
00:01:04]} Qc4+ {[%clk 00:07:06]} {[%emt 00:00:15]} 18. Qe2 {[%clk 00:04:00]}
{[%emt 00:00:10]} Qxa2 {[%clk 00:07:05]} {[%emt 00:00:03]} 19. Bd3 {[%clk
00:02:47]} {[%emt 00:01:15]} Qa1+ {[%clk 00:06:52]} {[%emt 00:00:14]} 20. Ne1
{[%clk 00:02:46]} {[%emt 00:00:03]} g6 {[%clk 00:06:37]} {[%emt 00:00:17]} 21.
f3 {[%clk 00:02:42]} {[%emt 00:00:06]} Bxa4 {[%clk 00:06:36]} {[%emt 00:00:03]}
22. g3 {[%clk 00:02:32]} {[%emt 00:00:12]} Rc7 {[%clk 00:06:27]} {[%emt
00:00:10]} 23. Kg2 {[%clk 00:02:31]} {[%emt 00:00:03]} Rac8 {[%clk 00:06:27]}
{[%emt 00:00:03]} 24. h4 {[%clk 00:02:13]} {[%emt 00:00:20]} Qf6 {[%clk
00:05:44]} {[%emt 00:00:44]} 25. h5 {[%clk 00:02:09]} {[%emt 00:00:07]} g5
{[%clk 00:05:44]} {[%emt 00:00:01]} 26. f4 {[%clk 00:01:58]} {[%emt 00:00:12]}
gxf4 {[%clk 00:05:31]} {[%emt 00:00:15]} 27. h6 {[%clk 00:01:47]} {[%emt
00:00:14]} Bxc2 {[%clk 00:05:00]} {[%emt 00:00:33]} 28. Qg4+ {[%clk 00:00:48]}
{[%emt 00:01:00]} Kh8 {[%clk 00:05:01]} 29. Qg7+ {[%clk 00:00:40]} {[%emt
00:00:12]} Qxg7 {[%clk 00:04:58]} {[%emt 00:00:06]} 30. hxg7+ {[%clk 00:00:41]}
Kxg7 {[%clk 00:04:55]} {[%emt 00:00:04]} 31. Nxc2 {[%clk 00:00:07]} {[%emt
00:00:36]} Rxc2+ {[%clk 00:04:56]} {[%emt 00:00:01]} 32. Kf3 {[%clk 00:00:05]}
{[%emt 00:00:05]} R2c3 {[%clk 00:04:53]} {[%emt 00:00:05]} 33. Rxh7+ {[%clk
00:00:05]} {[%emt 00:00:02]} Kg8 {[%clk 00:04:54]} 34. Bb1 {[%clk 00:00:04]}
{[%emt 00:00:03]} fxe3 {[%clk 00:04:47]} {[%emt 00:00:09]} 35. Kg4 {[%clk
00:00:05]} {[%emt 00:00:02]} e2 {[%clk 00:04:44]} {[%emt 00:00:05]} 0-1